fUST/lending_fUST_20250209
["ID","MTS","AMOUNT","RATE_DAILY","PERIOD"]
[352420670,1739093432616,-2295.0,0.00010299,2]
[352420671,1739093432626,-396.0,0.00010299,2]
[352420673,1739093432636,-405.67,0.00010299,2]
[352420675,1739093432645,-1800.0,0.00010342,2]
[352420677,1739093432655,-775.16738545,0.00010651,2]
[352420679,1739093432664,-400.0,0.00010685,2]
[352420681,1739093432674,-9539.45933114,0.00010858,2]
[352420682,1739093432683,-397.48018163,0.00010858,2]
[352420684,1739093432693,-673.37576987,0.000109,2]
[352420687,1739093432712,-216.94461647,0.00010957,2]
[352420689,1739093432723,-1485.966,0.00010957,2]
[352420708,1739093432927,-400.0,0.00010957,2]
[352420710,1739093432939,-456.87932911,0.00010957,2]
[352420712,1739093432949,-500.0,0.00010957,2]
[352420713,1739093432958,-378.96588971,0.00010957,2]
[352420715,1739093432968,-500.0,0.00010957,2]
[352420717,1739093432977,-500.0,0.00010957,2]
[352420719,1739093432985,-500.0,0.00010957,2]
[352420721,1739093432994,-500.0,0.00010957,2]
[352420722,1739093433004,-500.0,0.00010957,2]
[352420724,1739093433013,-500.0,0.00010957,2]
[352420726,1739093433022,-156.56377314,0.00010957,2]
[352420728,1739093433033,-259059.05226086,0.00010958,2]
[352421682,1739093443091,-1194.86905342,0.00010858,2]
[352421685,1739093443103,-1437.62322814,0.00010858,2]
[352421692,1739093443170,-1213.18788136,0.00010858,2]
[352421695,1739093443180,-2053.08144681,0.00010958,2]
[352421697,1739093443193,-8634.35675148,0.00010958,2]
[352422568,1739094089619,991.37,0.00014,30]
[352422569,1739094229733,1000.0,0.00014131,60]
[352422606,1739094632389,-1300.0,8.972e-05,2]
[352422608,1739094632400,-3234.4536993,9.683e-05,2]
[352422610,1739094632410,-300.0,0.00010298,2]
[352422612,1739094632419,-150.0,0.00010299,2]
[352422614,1739094632429,-537.0,0.00010299,2]
[352422616,1739094632438,-1973.0,0.00010299,2]
[352422618,1739094632447,-2295.0,0.00010299,2]
[352422620,1739094632457,-150.0,0.00010299,2]
[352422622,1739094632467,-1300.0,0.00010342,2]
[352422625,1739094632478,-400.0,0.00010685,2]
[352422626,1739094632487,-5044.5534266,0.00010858,2]
[352422629,1739094632561,-0.089831,0.00010858,2]
[352422633,1739094638050,-325.256,0.00010299,2]
[352422634,1739094638060,-405.67,0.00010299,2]
[352422635,1739094638072,-1314.99629648,0.00010858,2]
[352422636,1739094638081,-3461.11214661,0.00010858,2]
[352422637,1739094638090,-180.78718039,0.00010957,2]
[352422638,1739094638099,-1188.773,0.00010957,2]
[352422639,1739094638110,-14902.75308656,0.00010958,2]
[352422967,1739094643156,-150.0,0.00010299,2]
[352422969,1739094643168,-151.0,0.00010957,2]
[352422971,1739094643180,-140.0,0.00010958,2]
[352423874,1739094798696,3000.0,0.00014,30]
[352423875,1739094799359,3000.0,0.0001401,30]
[352423876,1739094799679,3000.0,0.0001402,30]
[352423877,1739094800215,3000.0,0.0001403,30]
[352423878,1739094992532,-1200.0,0.00010068,2]
[352423879,1739094992555,-150.0,0.00010299,2]
[352423880,1739094992577,-153.968,0.00010299,2]
[352423881,1739094992599,-396.0,0.00010299,2]
[352423882,1739094992621,-400.0,0.00010685,2]
[352423883,1739094992646,-300.0,0.00010899,2]
[352423884,1739094992670,-430.99620997,0.00010899,2]
[352423885,1739094992693,-96969.03579003,0.000109,2]
[352423886,1739095001029,5000.0,0.00016,120]
[352423887,1739095050162,-1000.0,0.00011,11]
[352423888,1739095050265,-19682.83468384,0.00012,7]
[352423889,1739095050289,-1000.0,0.00012,12]
[352423890,1739095050316,-160.0,0.00012184,5]
[352423891,1739095050342,-160.0,0.00012285,6]
[352423892,1739095050365,-164.354278,0.00012327,5]
[352423893,1739095050391,-160.0,0.00012386,7]
[352423894,1739095050420,-160.0,0.00012487,8]
[352423895,1739095050442,-160.0,0.00012588,9]
[352423896,1739095050466,-164.354278,0.00012601,5]
[352423897,1739095050491,-160.0,0.00012689,10]
[352423898,1739095050517,-160.0,0.0001279,11]
[352423899,1739095050541,-160.0,0.00012891,12]
[352423900,1739095050564,-30123.0065755,0.0001299,7]
[352423901,1739095050588,-160.0,0.00012992,13]
[352423902,1739095052459,700.0,5e-05,10]
[352423903,1739095155037,164.354278,0.00012601,5]
[352423904,1739095155789,164.354278,0.00012327,5]
[352423905,1739095156106,164.354278,0.0001299,7]
[352423906,1739095156768,164.354278,0.00012285,6]
[352424112,1739095646184,160.0,0.0001284,7]
[352424113,1739095646538,160.0,0.00012648,6]
[352424114,1739095646836,160.0,0.00012456,5]
[352424124,1739095832462,-219.37619585,9.968e-05,2]
[352424125,1739095832472,-1100.0,0.00010068,2]
[352424126,1739095832483,-300.0,0.00010298,2]
[352424127,1739095832493,-150.0,0.00010299,2]
[352424128,1739095832503,-1973.0,0.00010299,2]
[352424129,1739095832513,-537.0,0.00010299,2]
[352424130,1739095832522,-2295.0,0.00010299,2]
[352424131,1739095832532,-396.0,0.00010299,2]
[352424132,1739095832542,-11490.16080421,0.00010494,2]
[352424133,1739095832551,-400.0,0.00010685,2]
[352424134,1739095832560,-951.019,0.00010739,2]
[352424135,1739095832570,-215.6503119,0.00010822,2]
[352424136,1739095832579,-306.0,0.00010822,2]
[352424137,1739095832589,-153.0,0.00010822,2]
[352424138,1739095832599,-153.0,0.00010822,2]
[352424139,1739095832609,-153.0,0.00010822,2]
[352424140,1739095832619,-165.9641461,0.00010851,2]
[352424141,1739095832628,-165.96414609,0.00010853,2]
[352424142,1739095832638,-165.96414609,0.00010855,2]
[352424143,1739095832647,-165.96414609,0.00010856,2]
[352424144,1739095832657,-4239.75970272,0.00010858,2]
[352424145,1739095832666,-165.96414609,0.00010858,2]
[352424146,1739095832676,-3115.00093194,0.00010858,2]
[352424147,1739095832686,-80635.28538304,0.000109,2]
[352424148,1739095832698,-406.271099,0.000109,2]
[352424149,1739095832716,-456.65,0.000109,2]
[352424150,1739095832746,-61723.09030115,0.000109,2]
[352424151,1739095832755,-298.69805937,0.00010951,2]
[352424152,1739095832765,-151.0,0.00010957,2]
[352424153,1739095832774,-150.0,0.00010957,2]
[352424154,1739095832783,-500.0,0.00010957,2]
[352424155,1739095832793,-246.50581745,0.00010957,2]
[352424156,1739095832802,-500.0,0.00010957,2]
[352424157,1739095832811,-500.0,0.00010957,2]
[352424158,1739095832820,-239.53670597,0.00010957,2]
[352424159,1739095832834,-500.0,0.00010957,2]
[352424160,1739095832843,-500.0,0.00010957,2]
[352424161,1739095832857,-500.0,0.00010957,2]
[352424162,1739095832866,-598.35055589,0.00010957,2]
[352424163,1739095832876,-500.0,0.00010957,2]
[352424164,1739095832885,-500.0,0.00010957,2]
[352424165,1739095832895,-500.0,0.00010957,2]
[352424166,1739095832904,-500.0,0.00010957,2]
[352424167,1739095832914,-500.0,0.00010957,2]
[352424168,1739095832924,-500.0,0.00010957,2]
[352424169,1739095832934,-500.0,0.00010957,2]
[352424170,1739095833078,-220980.74327414,0.00010958,2]
[352424171,1739095833091,-4731.36838888,0.00010958,2]
[352424182,1739095838176,-1802.70952778,9.768e-05,2]
[352424183,1739095838186,-151.0,0.00010957,2]
[352424184,1739095838195,-433.59010739,0.00010958,2]
[352424185,1739095838207,-3499.791812,0.00010958,2]
[352424229,1739095840323,-500.0,0.00010958,2]
[352424385,1739095843433,-342.461,0.00010958,2]
[352424706,1739095846935,-151.0,0.00010957,2]
[352424709,1739095846950,-703.29696359,0.00010958,2]
[352424712,1739095846969,-20474.40749551,0.00010958,2]
[352426736,1739095874943,164.35428,0.0001273,7]
[352426760,1739096489992,5007.68,8.003e-05,2]
[352426766,1739096757767,193.518946,0.00011341,5]
[352426771,1739096960112,-239.09776337,9.459e-05,2]
[352426772,1739096960132,-364.8696556,9.6e-05,2]
[352426773,1739096960152,-300.0,9.749e-05,2]
[352426774,1739096960172,-2296.97652264,9.75e-05,2]
[352426783,1739097031398,150.0,8.003e-05,2]
[352426819,1739097032620,-8150.97699026,9.75e-05,2]
[352426820,1739097032629,-300.0,9.777e-05,2]
[352426821,1739097032638,-6711.9896156,9.778e-05,2]
[352426822,1739097032647,-1100.0,0.00010068,2]
[352426823,1739097032657,-150.0,0.00010299,2]
[352426824,1739097032666,-1973.0,0.00010299,2]
[352426826,1739097032676,-537.0,0.00010299,2]
[352426828,1739097032686,-2295.0,0.00010299,2]
[352426829,1739097032695,-396.0,0.00010299,2]
[352426830,1739097032704,-153.0,0.00010478,2]
[352426832,1739097032714,-153.0,0.00010478,2]
[352426834,1739097032724,-153.0,0.00010478,2]
[352426835,1739097032734,-167.21,0.00010571,2]
[352426837,1739097032743,-153.0,0.00010578,2]
[352426839,1739097032753,-153.0,0.000106,2]
[352426841,1739097032762,-153.0,0.000106,2]
[352426843,1739097032771,-224.825521,0.000106,2]
[352426845,1739097032781,-285.1082773,0.000106,2]
[352426847,1739097032790,-307.8253333,0.000106,2]
[352426849,1739097032800,-153.0,0.00010678,2]
[352426851,1739097032809,-153.0,0.00010678,2]
[352426852,1739097032819,-400.0,0.00010685,2]
[352426854,1739097032828,-420.0,0.00010754,2]
[352426857,1739097032838,-173.6056106,0.00010822,2]
[352426860,1739097032847,-337.05621015,0.00010858,2]
[352426862,1739097032856,-2826.50646848,0.00010858,2]
[352426864,1739097032866,-2803.5008388,0.00010858,2]
[352426866,1739097032875,-3000.0,0.00010858,2]
[352426869,1739097032885,-153.0,0.000109,2]
[352426872,1739097032894,-153.0,0.000109,2]
[352426875,1739097032904,-153.0,0.000109,2]
[352426877,1739097032914,-299.93590197,0.00010957,2]
[352426913,1739097033100,-760.815,0.00010957,2]
[352426916,1739097033110,-161.58675782,0.00010957,2]
[352426918,1739097033120,-407.70568416,0.00010957,2]
[352426920,1739097033130,-500.0,0.00010957,2]
[352426921,1739097033140,-628.51795234,0.00010957,2]
[352426923,1739097033150,-500.0,0.00010957,2]
[352426925,1739097033159,-350.91025747,0.00010957,2]
[352426926,1739097033169,-515.63425486,0.00010957,2]
[352426928,1739097033179,-500.0,0.00010957,2]
[352426929,1739097033189,-500.0,0.00010957,2]
[352426930,1739097033198,-500.0,0.00010957,2]
[352426931,1739097033208,-500.0,0.00010957,2]
[352426932,1739097033218,-180.787,0.00010957,2]
[352426933,1739097033227,-500.0,0.00010957,2]
[352426934,1739097033236,-500.0,0.00010957,2]
[352426935,1739097033245,-240.0,0.00010957,2]
[352426936,1739097033255,-500.0,0.00010957,2]
[352426937,1739097033264,-500.0,0.00010957,2]
[352426938,1739097033274,-500.0,0.00010957,2]
[352426939,1739097033283,-500.0,0.00010957,2]
[352426940,1739097033293,-225.67380587,0.00010957,2]
[352426941,1739097033302,-500.0,0.00010957,2]
[352426942,1739097033311,-500.0,0.00010957,2]
[352426943,1739097033320,-500.0,0.00010957,2]
[352426944,1739097033330,-400.0,0.00010957,2]
[352426945,1739097033339,-314.68570885,0.00010957,2]
[352426946,1739097033349,-459.95972912,0.00010957,2]
[352426947,1739097033358,-1140938.23135352,0.00010958,2]
[352426948,1739097033370,-75662.77915981,0.00010958,2]
[352426949,1739097033387,-1426.51304286,0.00010958,2]
[352426950,1739097033400,-4296.4720842,0.00010958,2]
[352426951,1739097033424,-268373.87577022,0.00010958,2]
[352426952,1739097033437,-72676.35186893,0.00010958,2]
[352426953,1739097033449,-3216.52141648,0.00010958,2]
[352426954,1739097033469,-4923.0424788,0.00010958,2]
[352426973,1739097038465,-1150.60243313,0.00010958,2]
[352426974,1739097038477,-1599.13135451,0.00010958,2]
[352426975,1739097038527,-293.33861973,0.00010958,2]
[352426976,1739097038539,-1000.0,0.00010958,2]
[352426977,1739097038550,-12965.70756543,0.00010958,2]
[352426978,1739097038561,-17803.95455745,0.00010958,2]
[352426979,1739097038591,-345.27915602,0.00010958,2]
[352426982,1739097038602,-1719.53208794,0.00010958,2]
[352426984,1739097038613,-64216.86085854,0.00010958,2]
[352427023,1739097040806,-40381.28844737,0.00010958,2]
[352427024,1739097040842,-1372.55179602,0.00010958,2]
[352427025,1739097040853,-512.37431689,0.00010958,2]
[352427028,1739097040913,-662.88304606,0.00010958,2]
[352427079,1739097043513,-8889.35674511,0.00010958,2]
[352427081,1739097043524,-1444.85155571,0.00010958,2]
[352427089,1739097043586,-211877.03917695,0.00010958,2]
[352427090,1739097043597,-1658.32009045,0.00010958,2]
[352427091,1739097043608,-492.76092073,0.00010958,2]
[352427093,1739097043638,-285.47142266,0.00010958,2]
[352427094,1739097043649,-1838.90000004,0.00010958,2]
[352427138,1739097046563,-1965.8,0.00010958,2]
[352427140,1739097046574,-2427.9365,0.00010958,2]
[352427142,1739097046586,-19480.98352077,0.00010958,2]
[352427144,1739097046595,-3862.00516885,0.00010958,2]
[352427146,1739097046608,-1137.99483115,0.00010958,2]
[352427148,1739097046617,-5000.0,0.00010958,2]
[352427150,1739097046626,-5764.116,0.00010958,2]
[352427152,1739097046635,-205.138242,0.00010958,2]
[352427154,1739097046644,-500.0,0.00010958,2]
[352427156,1739097046653,-500.0,0.00010958,2]
[352427158,1739097046662,-500.0,0.00010958,2]
[352427160,1739097046671,-500.0,0.00010958,2]
[352427162,1739097046680,-500.0,0.00010958,2]
[352427164,1739097046689,-500.0,0.00010958,2]
[352427166,1739097046699,-500.0,0.00010958,2]
[352427168,1739097046708,-500.0,0.00010958,2]
[352427170,1739097046717,-500.0,0.00010958,2]
[352427172,1739097046726,-500.0,0.00010958,2]
[352427174,1739097046735,-500.0,0.00010958,2]
[352427176,1739097046744,-500.0,0.00010958,2]
[352427178,1739097046754,-268.24585453,0.00010958,2]
[352427181,1739097046764,-500.0,0.00010958,2]
[352427182,1739097046773,-500.0,0.00010958,2]
[352427185,1739097046783,-500.0,0.00010958,2]
[352427187,1739097046792,-500.0,0.00010958,2]
[352427189,1739097046802,-500.0,0.00010958,2]
[352427191,1739097046812,-500.0,0.00010958,2]
[352427193,1739097046821,-500.0,0.00010958,2]
[352427195,1739097046831,-515.71912626,0.00010958,2]
[352427197,1739097046840,-500.0,0.00010958,2]
[352427199,1739097046850,-500.0,0.00010958,2]
[352427201,1739097046859,-500.0,0.00010958,2]
[352427203,1739097046868,-500.0,0.00010958,2]
[352427205,1739097046878,-500.0,0.00010958,2]
[352427207,1739097046887,-500.0,0.00010958,2]
[352427209,1739097046896,-500.0,0.00010958,2]
[352427211,1739097046906,-500.32050495,0.00010958,2]
[352427213,1739097046915,-500.0,0.00010958,2]
[352427215,1739097046925,-500.0,0.00010958,2]
[352427217,1739097046935,-500.0,0.00010958,2]
[352427219,1739097046944,-502.13737941,0.00010958,2]
[352427221,1739097046954,-500.0,0.00010958,2]
[352427223,1739097046964,-500.0,0.00010958,2]
[352427225,1739097046973,-500.0,0.00010958,2]
[352427227,1739097046982,-500.0,0.00010958,2]
[352427229,1739097046991,-503.957365,0.00010958,2]
[352427231,1739097047002,-528.93378092,0.00010958,2]
[352427233,1739097047012,-500.0,0.00010958,2]
[352427235,1739097047021,-500.0,0.00010958,2]
[352427237,1739097047030,-500.0,0.00010958,2]
[352427238,1739097047040,-501.0192834,0.00010958,2]
[352427239,1739097047050,-500.0,0.00010958,2]
[352427240,1739097047059,-500.0,0.00010958,2]
[352427241,1739097047069,-290.37639226,0.00010958,2]
[352427242,1739097047080,-500.0,0.00010958,2]
[352427243,1739097047089,-500.0,0.00010958,2]
[352427244,1739097047099,-500.0,0.00010958,2]
[352427245,1739097047109,-500.0,0.00010958,2]
[352427246,1739097047120,-500.0,0.00010958,2]
[352427247,1739097047130,-500.0,0.00010958,2]
[352427248,1739097047139,-501.45542142,0.00010958,2]
[352427249,1739097047149,-500.0,0.00010958,2]
[352427250,1739097047159,-500.0,0.00010958,2]
[352427251,1739097047168,-500.0,0.00010958,2]
[352427252,1739097047178,-637.75992428,0.00010958,2]
[352427253,1739097047188,-500.28446309,0.00010958,2]
[352427254,1739097047198,-501.45565923,0.00010958,2]
[352427255,1739097047208,-502.79302487,0.00010958,2]
[352427256,1739097047218,-500.0,0.00010958,2]
[352427257,1739097047227,-500.82623776,0.00010958,2]
[352427258,1739097047237,-500.0,0.00010958,2]
[352427259,1739097047247,-503.50576122,0.00010958,2]
[352427260,1739097047256,-500.0,0.00010958,2]
[352427261,1739097047266,-500.0,0.00010958,2]
[352427263,1739097047276,-500.0,0.00010958,2]
[352427266,1739097047287,-500.47509952,0.00010958,2]
[352427268,1739097047296,-500.0,0.00010958,2]
[352427270,1739097047306,-500.0,0.00010958,2]
[352427272,1739097047315,-500.0,0.00010958,2]
[352427274,1739097047325,-500.0,0.00010958,2]
[352427276,1739097047334,-500.0,0.00010958,2]
[352427278,1739097047344,-500.0,0.00010958,2]
[352427280,1739097047353,-500.0,0.00010958,2]
[352427282,1739097047363,-500.39225262,0.00010958,2]
[352427284,1739097047372,-500.0,0.00010958,2]
[352427286,1739097047382,-500.0,0.00010958,2]
[352427288,1739097047392,-500.0,0.00010958,2]
[352427290,1739097047401,-500.0,0.00010958,2]
[352427292,1739097047411,-501.20977094,0.00010958,2]
[352427294,1739097047423,-500.0,0.00010958,2]
[352427296,1739097047432,-500.0,0.00010958,2]
[352427298,1739097047442,-500.0,0.00010958,2]
[352427300,1739097047452,-327.92693562,0.00010958,2]
[352427302,1739097047462,-500.0,0.00010958,2]
[352427304,1739097047472,-500.0,0.00010958,2]
[352427306,1739097047481,-500.6938959,0.00010958,2]
[352427307,1739097047492,-500.0,0.00010958,2]
[352427310,1739097047502,-507.09083059,0.00010958,2]
[352427311,1739097047511,-500.0,0.00010958,2]
[352427326,1739097047642,-500.0,0.00010958,2]
[352427329,1739097047653,-500.0,0.00010958,2]
[352427331,1739097047663,-500.31303147,0.00010958,2]
[352427332,1739097047672,-500.0,0.00010958,2]
[352427334,1739097047681,-502.15425484,0.00010958,2]
[352427336,1739097047690,-501.20586288,0.00010958,2]
[352427339,1739097047700,-501.19091435,0.00010958,2]
[352427341,1739097047709,-500.68265055,0.00010958,2]
[352427342,1739097047719,-500.0,0.00010958,2]
[352427344,1739097047728,-500.0,0.00010958,2]
[352427347,1739097047738,-500.0,0.00010958,2]
[352427349,1739097047748,-500.94531543,0.00010958,2]
[352427351,1739097047759,-500.0,0.00010958,2]
[352427353,1739097047769,-500.59197054,0.00010958,2]
[352427355,1739097047780,-500.22146242,0.00010958,2]
[352427357,1739097047789,-500.0,0.00010958,2]
[352427359,1739097047799,-500.87587216,0.00010958,2]
[352427361,1739097047808,-500.0,0.00010958,2]
[352427363,1739097047819,-375.48385777,0.00010958,2]
[352427365,1739097047829,-500.0,0.00010958,2]
[352427367,1739097047840,-505.91843145,0.00010958,2]
[352427369,1739097047850,-500.0,0.00010958,2]
[352427371,1739097047860,-500.0,0.00010958,2]
[352427373,1739097047869,-273.91363963,0.00010958,2]
[352427375,1739097047878,-500.81681742,0.00010958,2]
[352427377,1739097047888,-500.0,0.00010958,2]
[352427379,1739097047898,-500.0,0.00010958,2]
[352427381,1739097047907,-501.09664373,0.00010958,2]
[352427383,1739097047917,-501.09828141,0.00010958,2]
[352427385,1739097047926,-500.0,0.00010958,2]
[352427387,1739097047936,-590.24265734,0.00010958,2]
[352427389,1739097047946,-500.0,0.00010958,2]
[352427391,1739097047956,-500.0,0.00010958,2]
[352427393,1739097047966,-577.9557611,0.00010958,2]
[352427395,1739097047976,-500.0,0.00010958,2]
[352427397,1739097047987,-500.0,0.00010958,2]
[352427399,1739097047997,-500.0,0.00010958,2]
[352427401,1739097048007,-500.0,0.00010958,2]
[352427403,1739097048018,-500.0,0.00010958,2]
[352427405,1739097048029,-500.0,0.00010958,2]
[352427407,1739097048039,-500.0,0.00010958,2]
[352427409,1739097048049,-500.0,0.00010958,2]
[352427411,1739097048060,-501.29034141,0.00010958,2]
[352427413,1739097048070,-564.59214256,0.00010958,2]
[352427415,1739097048083,-500.0,0.00010958,2]
[352427417,1739097048093,-500.0,0.00010958,2]
[352427419,1739097048104,-500.0,0.00010958,2]
[352427421,1739097048115,-500.0,0.00010958,2]
[352427423,1739097048126,-500.0,0.00010958,2]
[352427425,1739097048137,-500.0,0.00010958,2]
[352427427,1739097048147,-500.0,0.00010958,2]
[352427429,1739097048157,-501.21963776,0.00010958,2]
[352427431,1739097048169,-500.0,0.00010958,2]
[352427434,1739097048180,-500.0,0.00010958,2]
[352427435,1739097048191,-501.03298951,0.00010958,2]
[352427438,1739097048201,-501.01179665,0.00010958,2]
[352427440,1739097048212,-500.75626986,0.00010958,2]
[352427442,1739097048223,-501.33296328,0.00010958,2]
[352427444,1739097048234,-500.0,0.00010958,2]
[352427446,1739097048244,-500.0,0.00010958,2]
[352427448,1739097048255,-500.0,0.00010958,2]
[352427450,1739097048265,-500.0,0.00010958,2]
[352427452,1739097048276,-500.0,0.00010958,2]
[352427454,1739097048286,-500.53744535,0.00010958,2]
[352427456,1739097048296,-500.0,0.00010958,2]
[352427458,1739097048306,-541.21376228,0.00010958,2]
[352427460,1739097048316,-500.0,0.00010958,2]
[352427462,1739097048328,-502.51093517,0.00010958,2]
[352427464,1739097048339,-500.6447211,0.00010958,2]
[352427466,1739097048349,-500.0,0.00010958,2]
[352427468,1739097048360,-431.6979202,0.00010958,2]
[352427470,1739097048370,-500.0,0.00010958,2]
[352427472,1739097048381,-500.0,0.00010958,2]
[352427474,1739097048392,-500.0,0.00010958,2]
[352427476,1739097048401,-501.15225374,0.00010958,2]
[352427478,1739097048412,-500.0,0.00010958,2]
[352427480,1739097048424,-500.0,0.00010958,2]
[352427482,1739097048435,-502.64538234,0.00010958,2]
[352427484,1739097048446,-500.63325525,0.00010958,2]
[352427486,1739097048458,-500.0,0.00010958,2]
[352427488,1739097048469,-500.0,0.00010958,2]
[352427490,1739097048479,-500.0,0.00010958,2]
[352427492,1739097048490,-500.0,0.00010958,2]
[352427494,1739097048503,-500.0,0.00010958,2]
[352427497,1739097048514,-500.0,0.00010958,2]
[352427498,1739097048525,-500.0,0.00010958,2]
[352427501,1739097048536,-501.83115184,0.00010958,2]
[352427502,1739097048546,-500.0,0.00010958,2]
[352427504,1739097048557,-356.63470693,0.00010958,2]
[352427507,1739097048569,-500.35162088,0.00010958,2]
[352427509,1739097048580,-500.0,0.00010958,2]
[352427511,1739097048591,-501.07645991,0.00010958,2]
[352427513,1739097048603,-500.49403302,0.00010958,2]
[352427515,1739097048614,-500.0,0.00010958,2]
[352427517,1739097048624,-500.0,0.00010958,2]
[352427519,1739097048635,-502.32159604,0.00010958,2]
[352427521,1739097048649,-500.0,0.00010958,2]
[352427523,1739097048660,-504.77569937,0.00010958,2]
[352427525,1739097048670,-500.0,0.00010958,2]
[352427527,1739097048682,-500.0,0.00010958,2]
[352427529,1739097048693,-500.0,0.00010958,2]
[352427531,1739097048703,-500.0,0.00010958,2]
[352427533,1739097048713,-500.0,0.00010958,2]
[352427535,1739097048724,-500.0,0.00010958,2]
[352427537,1739097048735,-500.0,0.00010958,2]
[352427539,1739097048745,-500.0,0.00010958,2]
[352427541,1739097048754,-505.76689984,0.00010958,2]
[352427543,1739097048764,-500.0,0.00010958,2]
[352427545,1739097048774,-500.0,0.00010958,2]
[352427547,1739097048784,-500.0,0.00010958,2]
[352427549,1739097048795,-500.0,0.00010958,2]
[352427551,1739097048805,-500.0,0.00010958,2]
[352427553,1739097048816,-500.0,0.00010958,2]
[352427555,1739097048827,-500.0,0.00010958,2]
[352427557,1739097048837,-503.68108042,0.00010958,2]
[352427559,1739097048847,-500.0,0.00010958,2]
[352427561,1739097048857,-500.0,0.00010958,2]
[352427563,1739097048868,-500.0,0.00010958,2]
[352427565,1739097048877,-500.0,0.00010958,2]
[352427567,1739097048887,-500.0,0.00010958,2]
[352427569,1739097048897,-500.0,0.00010958,2]
[352427571,1739097048907,-491.38894616,0.00010958,2]
[352427573,1739097048916,-500.0,0.00010958,2]
[352427575,1739097048928,-500.0,0.00010958,2]
[352427577,1739097048940,-500.0,0.00010958,2]
[352427579,1739097048950,-500.0,0.00010958,2]
[352427581,1739097048961,-500.0,0.00010958,2]
[352427583,1739097048971,-500.0,0.00010958,2]
[352427585,1739097048981,-503.27241322,0.00010958,2]
[352427587,1739097048991,-500.0,0.00010958,2]
[352427589,1739097049001,-500.0,0.00010958,2]
[352427591,1739097049012,-500.72430006,0.00010958,2]
[352427593,1739097049022,-500.0,0.00010958,2]
[352427595,1739097049032,-500.0,0.00010958,2]
[352427597,1739097049043,-500.0,0.00010958,2]
[352427599,1739097049053,-500.0,0.00010958,2]
[352427601,1739097049064,-582.83746779,0.00010958,2]
[352427603,1739097049074,-500.0,0.00010958,2]
[352427605,1739097049085,-500.0,0.00010958,2]
[352427608,1739097049096,-501.18494595,0.00010958,2]
[352427610,1739097049106,-500.0,0.00010958,2]
[352427612,1739097049118,-500.0,0.00010958,2]
[352427614,1739097049128,-500.0,0.00010958,2]
[352427616,1739097049139,-500.0,0.00010958,2]
[352427618,1739097049149,-500.0,0.00010958,2]
[352427620,1739097049160,-500.0,0.00010958,2]
[352427622,1739097049170,-577.57,0.00010958,2]
[352427624,1739097049180,-500.0,0.00010958,2]
[352427626,1739097049191,-500.0,0.00010958,2]
[352427628,1739097049201,-500.0,0.00010958,2]
[352427630,1739097049212,-500.0,0.00010958,2]
[352427632,1739097049225,-500.0,0.00010958,2]
[352427634,1739097049234,-500.0,0.00010958,2]
[352427636,1739097049245,-500.0,0.00010958,2]
[352427638,1739097049255,-500.63898452,0.00010958,2]
[352427640,1739097049265,-500.0,0.00010958,2]
[352427642,1739097049276,-500.0,0.00010958,2]
[352427644,1739097049286,-500.0,0.00010958,2]
[352427646,1739097049296,-646.63201372,0.00010958,2]
[352427648,1739097049307,-500.0,0.00010958,2]
[352427650,1739097049318,-500.0,0.00010958,2]